bitfinex-derivatives/quotes_ETHF0:USTF0_20250314
["timestamp","ask_amount","ask_price","bid_price","bid_amount"]
[1741980327171,1.03959854,1938.2,1938.1,1.348]
[1741980327375,1.75049854,1938.2,1938.1,1.348]
[1741980327569,1.75049854,1938.2,1938.1,2.37991]
[1741980328661,0.00773854,1938.2,1938.1,2.37991]
[1741980329269,0.00773854,1938.2,1938.1,5.58771]
[1741980332177,0.00773854,1938.2,1938.1,2.37991]
[1741980332572,1.44263854,1938.2,1938.1,5.83791]
[1741980333376,2.47449854,1938.2,1938.1,1.348]
[1741980333569,1.03191,1938.1,1938.0,5.998]
[1741980333773,3.08651,1938.1,1938.0,7.4309]
[1741980334280,3.08651,1938.1,1938.0,8.46287]
[1741980334484,3.08651,1938.1,1938.0,7.4309]
[1741980334781,3.08651,1938.1,1938.0,8.46287]
[1741980334980,6.29431,1938.1,1938.0,7.4309]
[1741980335170,6.29431,1938.1,1938.0,5.998]
[1741980335580,1.03207,1937.8,1937.7,1.0321]
[1741980335974,2.58021,1937.8,1937.2,31.8098]
[1741980336180,1.03232,1937.4,1937.3,1.03234]
[1741980336679,1.03232,1937.4,1937.2,2.45366]
[1741980336876,1.4413,1937.3,1937.2,2.45366]
[1741980337178,2.47364,1937.3,1937.2,1.03236]
[1741980337576,1.4413,1937.3,1937.2,1.03236]
[1741980338078,3.2078,1937.6,1937.2,2.58099]
[1741980338278,4.6491,1937.6,1937.5,1.03223]
[1741980338477,1.4413,1937.6,1937.5,1.03223]
[1741980338682,0.7125,1937.7,1937.6,1.03218]
[1741980338979,2.47339,1937.8,1937.7,1.03213]
[1741980339381,1.4413,1937.8,1937.7,1.03213]
[1741980339794,1.3244,1938.0,1937.9,1.03202]
[1741980340081,2.4027,1938.0,1937.9,1.03202]
[1741980340886,1.3707,1938.0,1937.9,1.03202]
[1741980341180,3.2078,1938.1,1938.0,1.03197]
[1741980341492,1.37843854,1938.2,1938.1,1.03191]
[1741980342295,0.00773854,1938.2,1938.1,1.03191]
[1741980342784,2.38709854,1938.2,1938.1,1.03191]
[1741980342984,1.35523854,1938.2,1938.1,1.03191]
[1741980343589,0.00773854,1938.2,1938.1,1.03191]
[1741980345291,0.00773854,1938.2,1938.1,10.23771]
[1741980347086,0.00773854,1938.2,1938.1,7.02991]
[1741980347789,1.03959854,1938.2,1938.1,7.02991]
[1741980347990,0.00773854,1938.2,1938.1,8.36161]
[1741980348491,1.32503854,1938.2,1938.1,8.36161]
[1741980348987,0.00773854,1938.2,1938.1,11.56941]
[1741980349190,2.57859,1939.1,1938.5,1.0317]
[1741980349191,0.7222,1938.8,1938.5,1.0317]
[1741980349394,1.03166,1938.6,1938.4,1.03172]
[1741980349695,1.03165,1938.6,1938.5,1.3299]
[1741980350095,1.75005,1938.6,1938.5,1.3299]
[1741980351088,1.0317,1938.5,1938.4,0.00773854]
[1741980351489,4.2395,1938.5,1938.4,0.00773854]
[1741980351893,1.0317,1938.5,1938.4,0.00773854]
[1741980352489,1.0317,1938.5,1938.4,1.03948854]
[1741980352689,1.0317,1938.5,1938.4,1.35013854]
[1741980352891,4.2395,1938.5,1938.4,0.00773854]
[1741980354693,1.03186,1938.2,1938.1,1.3424]
[1741980354992,1.03188,1938.2,1938.1,1.03186]
[1741980355193,0.6645,1938.4,1938.0,2.57986]
[1741980355394,0.6645,1938.4,1938.3,1.03181]
[1741980355883,0.7184,1938.6,1938.4,1.03175]
[1741980356089,1.75005,1938.6,1938.5,1.3457]
[1741980358898,1.75005,1938.6,1938.5,2.3774]
[1741980358899,1.03165,1938.6,1938.5,2.3774]
[1741980359101,0.00773854,1938.7,1938.6,1.03165]
[1741980359491,1.03165,1938.6,1938.5,2.37736]
[1741980360185,1.03165,1938.6,1938.5,1.3457]
[1741980360502,1.03165,1938.6,1938.3,3.2078]
[1741980360503,1.03179,1938.4,1938.3,4.4898]
[1741980360690,1.03179,1938.4,1938.3,5.9192]
[1741980360890,1.03179,1938.4,1938.3,1.4294]
[1741980361100,1.03186,1938.2,1938.1,0.6734]
[1741980361302,1.03189,1938.2,1938.1,1.03191]
[1741980361792,1.70944,1938.3,1938.1,1.03186]
[1741980361989,1.03186,1938.2,1938.1,1.03186]
[1741980362190,0.6776,1938.3,1938.2,1.03186]
[1741980362396,1.03186,1938.2,1938.1,2.46128]
[1741980362596,1.03186,1938.2,1938.1,1.4294]
[1741980363399,1.70944,1938.3,1938.2,1.03186]
[1741980363588,1.70944,1938.3,1938.1,1.4294]
[1741980363791,1.69658,1938.4,1938.3,1.03181]
[1741980363999,4.23952,1938.5,1938.4,1.03175]
[1741980364499,1.03175,1938.4,1938.3,2.41478]
[1741980364697,1.03173,1938.5,1938.4,1.03175]
[1741980365094,1.03175,1938.4,1938.3,2.41477]
[1741980365301,1.03175,1938.4,1938.3,1.383]
[1741980365500,1.03191,1938.2,1938.0,3.465]
[1741980365699,1.03191,1938.2,1938.0,6.60443]
[1741980365903,1.03191,1938.2,1938.1,2.41491]
[1741980367095,1.72671,1938.2,1938.1,2.41491]
[1741980367291,1.72671,1938.2,1938.1,1.383]
[1741980367797,1.72671,1938.2,1938.1,2.41491]
[1741980368000,3.09161,1938.2,1938.1,1.383]
[1741980368698,3.09161,1938.2,1938.1,2.41491]
[1741980368900,3.09161,1938.2,1938.1,1.383]
[1741980371396,3.09161,1938.2,1938.1,2.41491]
[1741980371807,3.09161,1938.2,1938.1,1.383]
[1741980372204,3.09161,1938.2,1938.1,2.41491]
[1741980373803,3.09161,1938.2,1938.1,1.383]
[1741980374004,6.29941,1938.2,1938.1,1.383]
[1741980374206,3.09161,1938.2,1938.1,1.383]
[1741980375212,1.03197,1938.0,1937.9,0.6757]
[1741980375610,1.03197,1938.0,1937.9,1.70769]
[1741980375812,1.3729,1938.1,1938.0,1.03197]
[1741980377013,2.40481,1938.1,1938.0,1.03197]
[1741980379312,3.8996,1938.3,1937.9,3.9966]
[1741980379518,2.0693,1938.3,1937.9,7.2044]
[1741980379812,2.0693,1938.3,1938.0,1.4453]
[1741980380014,3.10113,1938.3,1938.2,1.03186]
[1741980380211,3.10113,1938.3,1938.1,1.72867]
[1741980380414,3.10113,1938.3,1938.2,1.4453]
[1741980380918,1.3775,1938.3,1938.2,2.47716]
[1741980381220,1.3775,1938.3,1938.2,3.14566]
[1741980382013,1.73758,1938.4,1938.2,3.14566]
[1741980382014,1.73758,1938.4,1938.3,1.03181]
[1741980382220,2.38983,1938.5,1938.4,1.03175]
[1741980382519,2.3898,1938.5,1938.4,1.03175]
[1741980382721,1.03175,1938.4,1938.3,2.43157]
[1741980383018,1.03172,1938.5,1938.4,1.03175]
[1741980383218,2.38982,1938.5,1938.4,2.43155]
[1741980383816,2.38982,1938.5,1938.4,1.3998]
[1741980384415,5.59762,1938.5,1938.4,1.3998]
[1741980385316,1.03181,1938.3,1938.2,1.70033]
[1741980385521,1.03181,1938.3,1938.2,3.14223]
[1741980385917,4.23961,1938.3,1938.2,1.4419]
[1741980386517,4.23961,1938.3,1938.2,2.47376]
[1741980386918,4.23961,1938.3,1938.2,1.4419]
[1741980387618,4.96701,1938.3,1938.2,1.4419]
[1741980388222,1.03191,1938.1,1938.0,5.15742]
[1741980388826,1.69428,1938.2,1938.1,1.03191]
[1741980389614,1.03188,1938.2,1938.1,2.43671]
[1741980389919,1.03188,1938.2,1938.1,1.4048]
[1741980390125,2.42808,1938.2,1938.1,1.4048]
[1741980390330,2.42808,1938.2,1938.1,2.43671]
[1741980391027,2.42806,1938.2,1938.1,2.43671]
[1741980392228,1.3962,1938.2,1938.1,2.43671]
[1741980392430,0.6624,1938.4,1938.1,1.4048]
[1741980392631,1.426,1938.4,1938.3,1.03181]
[1741980392832,2.45775,1938.4,1938.3,1.03181]
[1741980393132,2.45775,1938.4,1938.3,0.6823]
[1741980393624,1.03181,1938.3,1938.2,1.3654]
[1741980393822,2.45781,1938.3,1938.2,1.3654]
[1741980394334,1.426,1938.3,1938.2,2.39726]
[1741980395330,2.45781,1938.3,1938.2,1.3654]
[1741980395527,2.45781,1938.3,1938.2,2.39726]
[1741980396232,2.45781,1938.3,1938.2,1.3654]
[1741980396535,2.45781,1938.3,1938.2,2.39726]
[1741980396930,1.426,1938.3,1938.2,2.39726]
[1741980397432,2.45781,1938.3,1938.2,2.39726]
[1741980397736,1.426,1938.3,1938.2,2.39726]
[1741980398234,2.45781,1938.3,1938.2,2.39726]
[1741980398746,1.426,1938.3,1938.2,2.39726]
[1741980399328,1.71393,1938.5,1938.4,1.03175]
[1741980399637,1.03175,1938.4,1938.3,5.93416]
[1741980399937,3.15874,1938.5,1938.4,1.03175]
[1741980400127,3.15874,1938.5,1938.4,1.4434]
[1741980400434,3.15874,1938.5,1938.4,2.47515]
[1741980401031,3.15874,1938.5,1938.4,1.4434]
[1741980401335,2.127,1938.5,1938.1,4.1133]
[1741980401635,2.127,1938.5,1938.2,1.4434]
[1741980401636,1.03185,1938.3,1938.2,1.4434]
[1741980402339,2.45625,1938.3,1938.2,1.4434]
[1741980402531,1.03191,1938.1,1938.0,0.6675]
[1741980402731,3.2078,1938.1,1937.6,9.2058]
[1741980402937,1.03207,1937.8,1937.7,2.47549]
[1741980403134,1.03207,1937.8,1937.7,1.4434]
[1741980403430,1.72126,1937.9,1937.8,1.03207]
[1741980403631,1.72125,1937.9,1937.7,1.4434]
[1741980403821,1.3205,1937.8,1937.7,2.47548]
[1741980404831,2.35257,1937.8,1937.7,2.47548]
[1741980405831,3.06917,1937.8,1937.7,1.4434]
[1741980407831,3.06917,1937.8,1937.5,5.8825]
[1741980407832,1.03218,1937.6,1937.5,5.8825]
[1741980408023,2.44337,1937.7,1937.6,1.03218]
[1741980408228,2.44337,1937.7,1937.6,2.42818]
[1741980409128,2.44337,1937.7,1937.6,1.396]
[1741980410835,1.03226,1937.5,1937.4,1.03227]
[1741980411034,1.03226,1937.5,1937.4,2.44807]
[1741980411539,2.37346,1937.5,1937.4,2.44807]
[1741980412552,2.37346,1937.5,1937.4,1.4158]
[1741980412741,1.3412,1937.5,1937.4,2.44809]
[1741980413936,2.37343,1937.5,1937.4,3.13299]
[1741980414137,1.3412,1937.5,1937.4,3.13299]
[1741980419040,0.00773854,1937.6,1937.5,1.03223]
[1741980419339,0.00773854,1937.6,1937.5,5.59073]
[1741980423348,0.00773854,1937.6,1937.5,2.38293]
[1741980423846,1.38413854,1937.6,1937.5,5.59073]
[1741980425543,0.00773854,1937.6,1937.5,5.59073]
[1741980430943,0.00773854,1937.6,1937.5,5.59073]
[1741980434141,1.3831,1937.8,1937.7,1.03213]
[1741980434347,0.6693,1938.0,1937.9,1.03202]
[1741980435445,0.6693,1938.0,1937.9,4.23982]
[1741980435641,0.67833854,1938.1,1938.0,1.03197]
[1741980436048,0.00773854,1938.1,1938.0,2.39927]
[1741980437550,1.03964854,1938.1,1938.0,1.03197]
[1741980437752,1.73964854,1938.1,1938.0,1.428]
[1741980438252,0.70773854,1938.1,1938.0,2.45997]
[1741980438455,1.73964854,1938.1,1938.0,2.45997]
[1741980438951,0.70773854,1938.1,1938.0,2.45997]
[1741980445057,1.73964854,1938.1,1938.0,2.45997]
[1741980445252,0.70773854,1938.1,1938.0,2.45997]
[1741980448058,2.14043854,1938.1,1938.0,2.45997]
[1741980449658,1.03159,1938.8,1938.3,2.57941]
[1741980449859,1.3764,1938.4,1938.3,4.23961]
[1741980450056,1.3764,1938.4,1938.3,7.69561]
[1741980451756,0.00773854,1938.5,1938.4,1.03175]
[1741980452063,1.36293854,1938.5,1938.4,1.03175]
[1741980460068,0.00773854,1938.5,1938.4,1.03175]
[1741980460861,0.00773854,1938.5,1938.4,1.74015]
[1741980462263,0.00773854,1938.5,1938.4,1.03175]
[1741980462474,0.72623854,1938.5,1938.4,1.03175]
[1741980463167,1.75797854,1938.5,1938.4,3.455]
[1741980463374,1.03175,1938.4,1938.3,1.03179]
[1741980463572,2.0119,1938.4,1938.3,4.48679]
[1741980464769,1.3269,1938.4,1938.3,4.48679]
[1741980465976,2.0053,1938.4,1938.3,4.48679]
[1741980466178,2.0053,1938.4,1938.3,5.19219]
[1741980470082,3.03705,1938.4,1938.3,4.48679]
[1741980470282,2.0053,1938.4,1938.3,1.03179]
[1741980470483,2.0053,1938.4,1938.3,4.48679]
[1741980471880,3.03708,1938.4,1938.2,2.38053]
[1741980472082,1.426,1938.3,1938.2,2.38053]
[1741980472381,2.45781,1938.3,1938.2,2.38053]
[1741980472586,2.45781,1938.3,1938.2,1.3487]
[1741980472885,1.426,1938.3,1938.2,1.03186]
[1741980473086,1.426,1938.3,1938.2,2.37646]
[1741980474383,2.45781,1938.3,1938.2,1.3446]
[1741980474583,1.426,1938.3,1938.2,2.37646]
[1741980475084,2.45781,1938.3,1938.2,1.3446]
[1741980475284,1.03194,1938.1,1937.9,28.614]
[1741980475485,1.03194,1938.1,1938.0,1.03197]
[1741980475683,1.03197,1938.0,1937.9,33.10099]
[1741980475890,1.03197,1938.0,1937.9,31.09089]
[1741980476183,4.23975,1938.1,1937.9,31.09089]
[1741980476387,3.2078,1938.1,1937.8,0.00773854]
[1741980476591,5.78795,1937.9,1937.4,3.2078]
[1741980476888,1.03227,1937.5,1937.3,2.47721]
[1741980477581,2.58019,1937.8,1937.2,28.61]
[1741980477582,2.58036,1937.7,1937.2,29.64237]
[1741980477785,2.58036,1937.7,1937.2,29.65010854]
[1741980478083,1.03234,1937.3,1937.2,29.65010854]
[1741980478287,1.03229,1937.4,1937.3,1.03234]
[1741980478487,1.04002854,1937.4,1937.3,2.47724]
[1741980478987,1.03234,1937.3,1937.2,1.04011854]
[1741980479185,1.04006854,1937.4,1937.2,2.35231854]
[1741980479687,0.00773854,1937.4,1937.3,1.03234]
[1741980479888,0.00773854,1937.4,1937.3,2.34454]
[1741980480786,1.04002854,1937.4,1937.3,2.34454]
[1741980480981,0.00773854,1937.4,1937.3,2.34454]
[1741980481288,1.04002854,1937.4,1937.3,1.3122]
[1741980481485,1.04002854,1937.4,1937.2,1.04009854]
[1741980481486,1.03234,1937.3,1937.2,1.04009854]
[1741980481688,1.03234,1937.3,1937.2,0.00773854]
[1741980481890,4.24014,1937.3,1937.2,0.00773854]
[1741980482081,1.03234,1937.3,1937.2,0.00773854]
[1741980482283,0.00773854,1937.4,1937.2,0.00773854]
[1741980482481,1.03234,1937.3,1937.2,2.45548854]
[1741980482689,1.03234,1937.3,1937.2,1.42313854]
[1741980482884,1.03234,1937.3,1937.2,2.45552854]
[1741980483391,1.03234,1937.3,1937.2,1.42313854]
[1741980483783,1.03234,1937.3,1937.2,2.45552854]
[1741980484283,1.03234,1937.3,1937.2,1.42313854]
[1741980485584,1.03234,1937.3,1937.2,0.00773854]
[1741980486485,1.03234,1937.3,1937.2,1.35853854]
[1741980487291,4.24014,1937.3,1937.2,0.00773854]
[1741980487495,1.03234,1937.3,1937.2,0.00773854]
[1741980488087,2.39434,1937.3,1937.2,1.43743854]
[1741980488491,2.39434,1937.3,1937.2,0.00773854]
[1741980488691,5.60214,1937.3,1937.2,0.00773854]
[1741980488994,2.39434,1937.3,1937.2,0.00773854]
[1741980490490,5.60214,1937.3,1937.2,0.00773854]
[1741980490682,2.39434,1937.3,1937.2,0.00773854]
[1741980490882,3.10454,1937.3,1937.2,0.00773854]
[1741980491285,6.31234,1937.3,1937.2,0.00773854]
[1741980492195,3.10454,1937.3,1937.2,0.00773854]
[1741980493488,6.31234,1937.3,1937.2,0.00773854]
[1741980494888,3.83174,1937.3,1937.2,0.00773854]
[1741980495102,2.39434,1937.3,1937.2,1.04012854]
[1741980495400,2.39434,1937.3,1937.2,0.00773854]
[1741980495597,2.39434,1937.3,1937.2,1.40273854]
[1741980495797,5.60214,1937.3,1937.2,1.40273854]
[1741980496492,2.39434,1937.3,1937.2,0.00773854]
[1741980497599,5.60214,1937.3,1937.2,0.00773854]
[1741980502901,1.03245,1937.1,1937.0,1.4553]
[1741980503302,1.03245,1937.1,1937.0,2.4878]
[1741980503504,2.45335,1937.1,1937.0,2.4878]
[1741980505208,2.45335,1937.1,1937.0,1.4553]
[1741980508018,2.45335,1937.1,1936.8,0.7237]
[1741980508019,1.03255,1936.9,1936.8,0.7237]
[1741980509315,1.03255,1936.9,1936.2,1.03291]
[1741980509316,2.58165,1936.7,1936.2,1.03291]
[1741980509529,1.03293,1936.2,1936.1,1.3876]
[1741980510025,2.43673,1936.2,1936.1,1.3876]
[1741980511819,1.4038,1936.2,1935.9,1.03308]
[1741980512021,1.03307,1936.0,1935.9,2.42068]
[1741980512216,1.03307,1936.0,1935.9,2.42069]
[1741980512519,1.03307,1936.0,1935.9,1.3876]
[1741980512718,4.24087,1936.0,1935.9,1.3876]
[1741980513020,5.62007,1936.0,1935.9,1.3876]
[1741980513818,2.41227,1936.0,1935.9,1.3876]
[1741980514023,2.58272,1935.9,1935.5,1.70368]
[1741980514223,1.03319,1935.7,1935.6,1.3945]
[1741980515025,2.41239,1935.7,1935.6,1.3945]
[1741980516714,1.03331,1935.5,1935.4,1.03332]
[1741980516916,1.4318,1935.6,1935.3,2.37999]
[1741980517117,2.58326,1935.5,1934.9,3.2078]
[1741980517327,2.1382,1935.4,1934.8,7.24438]
[1741980517622,1.4318,1935.3,1935.1,1.03348]
[1741980517825,2.47297854,1935.3,1935.2,1.4524]
[1741980518228,3.2078,1935.9,1935.2,11.64966]
[1741980518523,1.0333,1935.6,1935.4,1.03334]
[1741980518823,3.2078,1935.7,1935.5,1.3856]
[1741980519019,1.03328,1935.6,1935.5,1.3856]
[1741980519419,0.00773854,1935.7,1935.5,1.3856]
[1741980519622,1.03325,1935.6,1935.5,2.0469]
[1741980520626,1.03325,1935.6,1935.5,3.0802]
[1741980520826,1.03325,1935.6,1935.5,2.0469]
[1741980521219,1.03325,1935.6,1935.5,3.0802]
[1741980521522,1.03325,1935.6,1935.5,2.0469]
[1741980521829,2.44963854,1935.7,1935.5,3.08016]
[1741980522025,2.44963854,1935.7,1935.6,1.3835]
[1741980522825,0.00773854,1935.7,1935.6,2.41675]
[1741980523032,1.04092854,1935.7,1935.6,1.3835]
[1741980524320,0.00773854,1935.7,1935.6,1.3835]
[1741980524525,1.04092854,1935.7,1935.6,1.3835]
[1741980524831,1.04092854,1935.7,1935.6,2.41675]
[1741980525425,0.00773854,1935.7,1935.6,2.41675]
[1741980526125,5.16405,1936.5,1935.6,2.41675]
[1741980526126,3.2078,1936.3,1935.9,2.58272]
[1741980526327,1.403,1936.4,1936.3,1.03287]
[1741980526724,1.03281,1936.5,1936.3,1.03287]
[1741980526929,1.03277,1936.5,1936.4,1.3297]
[1741980527428,4.24057,1936.5,1936.4,1.3297]
[1741980527825,2.36137,1936.5,1936.4,1.3297]
[1741980531135,1.3286,1936.5,1936.4,2.36252]
[1741980532337,2.36137,1936.5,1936.4,1.3297]
[1741980532937,1.3286,1936.5,1936.4,2.36252]
[1741980533235,1.3286,1936.5,1936.4,1.3297]
[1741980533436,1.3286,1936.5,1936.4,2.36252]
[1741980533940,1.3286,1936.5,1936.4,1.3297]
[1741980533941,2.36137,1936.5,1936.4,1.3297]
[1741980534334,5.56917,1936.5,1936.4,1.3297]
[1741980534529,2.36137,1936.5,1936.4,1.3297]
[1741980534835,5.56917,1936.5,1936.4,1.3297]
[1741980535234,2.36137,1936.5,1936.4,1.3297]
[1741980535429,2.36137,1936.5,1936.4,2.36252]
[1741980536736,2.36137,1936.5,1936.4,1.3297]
[1741980537435,1.3286,1936.5,1936.4,2.36252]
[1741980538043,2.41718854,1936.6,1936.4,1.3297]
[1741980538335,2.41718854,1936.6,1936.5,2.1054]
[1741980538540,5.62498854,1936.6,1936.5,2.1054]
[1741980538932,5.62498854,1936.6,1936.5,3.13817]
[1741980539133,2.41718854,1936.6,1936.5,2.1054]
[1741980539650,1.38443854,1936.6,1936.5,3.13817]
[1741980540137,2.79583854,1936.6,1936.5,3.13817]
[1741980540346,3.82854854,1936.6,1936.5,1.4111]
[1741980540543,1.03282,1936.4,1936.3,1.70696]
[1741980541232,1.03281,1936.5,1936.3,0.6741]
[1741980541446,2.41718854,1936.6,1936.3,0.6741]
[1741980541739,1.38443854,1936.6,1936.5,1.03277]
[1741980542047,3.82859854,1936.6,1936.5,1.03277]
[1741980542546,3.82859854,1936.6,1936.5,1.4338]
[1741980543136,0.00773854,1936.6,1936.5,2.46657]
[1741980543331,1.04044854,1936.6,1936.5,1.4338]
[1741980543540,2.39044854,1936.6,1936.5,1.4338]
[1741980543849,5.59824854,1936.6,1936.5,1.4338]
[1741980544044,2.39044854,1936.6,1936.5,1.4338]
[1741980544250,1.03287,1936.3,1936.2,1.03288]
[1741980544447,1.03287,1936.3,1936.2,2.43638]
[1741980544847,2.38286,1936.4,1936.2,2.43638]
[1741980545049,4.24066,1936.4,1936.3,1.4035]
[1741980545443,1.03286,1936.4,1936.3,1.4035]
[1741980545847,4.24066,1936.4,1936.3,1.4035]
[1741980546050,1.03286,1936.4,1936.3,1.4035]
[1741980546750,4.24066,1936.4,1936.3,1.4035]
[1741980547251,1.03286,1936.4,1936.3,2.43637]
[1741980547750,1.03286,1936.4,1936.3,1.4035]
[1741980548852,1.03286,1936.4,1936.3,2.43637]
[1741980550848,4.5757,1936.5,1936.3,1.4035]
[1741980551053,1.03282,1936.4,1936.3,1.4035]
[1741980551850,1.03282,1936.4,1936.3,2.43637]
[1741980552858,1.03282,1936.4,1936.3,1.4035]
[1741980553256,1.03282,1936.4,1936.3,2.43637]
[1741980554155,1.03282,1936.4,1936.3,1.4035]
[1741980554958,1.03293,1936.2,1936.1,1.03296]
[1741980555158,1.03293,1936.2,1936.1,2.37096]
[1741980555358,1.03293,1936.2,1936.1,1.338]
[1741980556163,1.03293,1936.2,1936.1,2.37098]
[1741980556957,1.03293,1936.2,1936.1,1.338]
[1741980557257,1.03309,1935.9,1935.8,2.37109]
[1741980557460,1.03314,1935.8,1935.7,1.03317]
[1741980557665,0.6725,1936.1,1935.7,1.338]
[1741980557956,1.03313,1935.9,1935.8,1.03312]
[1741980558159,1.03314,1935.8,1935.7,2.37116]
[1741980558648,1.03314,1935.8,1935.7,1.338]
[1741980558954,5.61284,1935.8,1935.7,1.338]
[1741980559264,5.61284,1935.8,1935.7,2.37119]
[1741980559468,5.61284,1935.8,1935.7,1.338]
[1741980560156,5.61284,1935.8,1935.7,2.37119]
[1741980560354,5.61284,1935.8,1935.7,1.338]
[1741980561659,2.40504,1935.8,1935.7,1.338]
[1741980561956,2.40504,1935.8,1935.7,2.37119]
[1741980562171,2.40504,1935.8,1935.7,1.338]
[1741980562358,1.3719,1935.8,1935.7,1.338]
[1741980562658,2.40504,1935.8,1935.7,2.37119]
[1741980562861,1.3719,1935.8,1935.7,2.37119]
[1741980563052,2.40504,1935.8,1935.7,2.37119]
[1741980563563,1.3719,1935.8,1935.7,2.37119]
[1741980564955,2.40504,1935.8,1935.7,2.37119]
[1741980567059,2.40504,1935.8,1935.7,1.338]
[1741980567363,2.40504,1935.8,1935.7,2.37119]
[1741980572565,3.8803,1936.1,1935.8,1.03314]
[1741980572760,3.2078,1936.1,1936.0,1.03303]
[1741980573370,3.2078,1936.1,1936.0,2.43093]
[1741980573766,1.03292,1936.3,1936.1,1.03298]
[1741980573963,2.38933,1936.2,1936.1,1.71008]
[1741980574263,1.3564,1936.2,1936.1,1.71008]
[1741980575164,1.03292,1936.3,1936.2,1.03293]
[1741980575362,4.24063,1936.4,1936.3,1.03287]
[1741980575570,5.59703,1936.4,1936.3,1.03287]
[1741980576265,1.3564,1936.4,1936.3,1.03287]
[1741980576464,1.3564,1936.4,1936.2,1.0329]
[1741980576660,1.03293,1936.2,1936.0,3.455]
[1741980576861,1.4274,1936.1,1936.0,4.488]
[1741980579766,1.0329,1936.3,1936.2,1.03293]
[1741980579963,0.6654,1936.5,1936.0,6.03756]
[1741980580170,1.3359,1936.3,1936.2,1.03289]
[1741980580569,2.36877,1936.3,1936.2,1.03289]
[1741980580769,1.3359,1936.3,1936.2,1.03289]
[1741980581473,0.6654,1936.5,1936.4,1.03282]
[1741980581665,2.0013,1936.5,1936.4,1.03282]
[1741980582065,3.03407,1936.5,1936.4,1.03282]
[1741980582367,1.03282,1936.4,1936.3,1.69875]
[1741980582573,2.45692,1936.4,1936.3,1.69875]
[1741980582869,1.4241,1936.4,1936.0,3.455]
[1741980583069,3.8732,1936.5,1936.0,4.8047]
[1741980583070,2.45701,1936.3,1936.0,4.8047]
[1741980583268,1.4241,1936.2,1936.1,1.03298]
[1741980583665,2.45703,1936.2,1936.1,1.03298]
[1741980583870,1.4241,1936.2,1936.1,1.03298]
[1741980584169,0.6654,1936.5,1936.4,1.03282]
[1741980584472,1.03282,1936.4,1936.3,1.03283]
[1741980584970,0.6654,1936.5,1936.4,1.03282]
[1741980585171,1.69817,1936.5,1936.4,1.03282]
[1741980585371,0.00773854,1936.6,1936.5,1.03277]
[1741980585563,1.36673854,1936.6,1936.5,1.03277]
[1741980586673,2.39944854,1936.6,1936.5,1.03277]
[1741980586873,1.36673854,1936.6,1936.5,1.03277]
[1741980587866,0.00773854,1936.6,1936.5,1.03277]
[1741980588067,0.00773854,1936.6,1936.5,2.41027]
[1741980593481,1.3778,1936.8,1936.7,1.03266]
[1741980593977,0.6915,1937.1,1936.9,1.03252]
[1741980594181,3.9226,1937.0,1936.8,1.03256]
[1741980594367,1.03255,1936.9,1936.8,1.03256]
[1741980595379,1.3269,1936.9,1936.8,2.41846]
[1741980596780,2.35945,1936.9,1936.8,2.41846]
[1741980597480,2.35945,1936.9,1936.8,1.03256]
[1741980597782,2.35945,1936.9,1936.8,2.47156]
[1741980598280,1.3269,1936.9,1936.8,2.47156]
[1741980599280,1.3269,1936.9,1936.8,3.13246]
[1741980600579,2.35945,1936.9,1936.8,3.13246]
[1741980600774,1.3269,1936.9,1936.8,2.47156]
[1741980606377,0.00773854,1937.1,1937.0,1.0325]
[1741980606585,0.00773854,1937.1,1937.0,4.2403]
[1741980606774,0.00773854,1937.1,1937.0,6.2917]
[1741980607283,1.3701,1937.5,1937.4,1.03229]
[1741980607479,1.3995,1937.7,1937.6,1.03218]
[1741980607683,3.78903,1937.7,1937.6,1.03218]
[1741980608082,1.03218,1937.6,1937.5,1.3949]
[1741980608285,4.6073,1937.6,1937.4,2.42716]
[1741980608479,4.6073,1937.6,1937.4,1.3949]
[1741980608786,1.3995,1937.5,1937.4,2.42719]
[1741980610682,1.3574,1937.7,1937.4,1.3949]
[1741980610982,2.6992,1937.7,1937.6,1.03218]
[1741980611382,2.6992,1937.7,1937.6,2.38128]
[1741980612283,0.00773854,1937.8,1937.7,1.03213]
[1741980612587,0.00773854,1937.8,1937.7,2.48253]
[1741980624283,0.68123854,1937.8,1937.7,2.48253]
[1741980628884,0.00773854,1937.8,1937.7,2.48253]
[1741980629390,0.69463854,1937.8,1937.7,1.03213]
[1741980629587,0.69463854,1937.8,1937.4,3.2078]
[1741980629790,1.03219,1937.6,1937.2,9.446]
[1741980629989,3.75716,1937.5,1937.3,1.03231]
[1741980630195,1.3443,1937.4,1937.3,1.03231]
[1741980631497,1.3443,1937.4,1937.3,2.43081]
[1741980634195,1.3443,1937.4,1937.3,5.87881]
[1741980636294,1.3806,1937.5,1937.4,1.03229]
[1741980636498,1.3806,1937.5,1937.4,5.56369]
[1741980639190,1.3806,1937.5,1937.1,2.58111]
[1741980639191,5.62068,1937.5,1937.1,2.58111]
[1741980639398,1.3561,1937.4,1937.3,1.03234]
[1741980640391,1.3561,1937.4,1937.3,2.41224]
[1741980651204,1.3561,1937.4,1937.3,1.03234]
[1741980658115,1.3806,1937.5,1937.4,1.03229]
[1741980658706,0.85965768,1937.8,1937.4,6.02864]
[1741980659011,0.00773854,1937.8,1937.7,1.03213]
[1741980659214,0.00773854,1937.8,1937.7,2.44893]
[1741980659414,1.446,1938.0,1937.9,1.03202]
[1741980659706,1.3156,1938.1,1938.0,1.03197]
[1741980659908,0.722,1938.3,1938.2,1.03186]
[1741980661309,2.0996,1938.3,1938.2,1.03186]
[1741980663010,2.0996,1938.3,1938.1,1.42453854]